fUSD/lending_fUSD_20250911
["ID","MTS","AMOUNT","RATE_DAILY","PERIOD"]
[384964538,1757634681990,-998.49,0.00027945,7]
[384964539,1757634681999,-400.0,0.00027945,7]
[384964540,1757634682009,-400.0,0.00027945,7]
[384964541,1757634682018,-400.0,0.00027945,7]
[384964542,1757634682027,-432.3,0.00027945,7]
[384964543,1757634682037,-1019.55,0.00027945,7]
[384964544,1757634682047,-400.0,0.00027945,7]
[384964545,1757634682056,-400.0,0.00027945,7]
[384964546,1757634682065,-306.64126308,0.00027945,7]
[384964547,1757634682075,-863.69,0.00027945,7]
[384964549,1757634682084,-400.0,0.00027945,7]
[384964550,1757634682093,-956.25,0.00027945,7]
[384964551,1757634682103,-471.26,0.00027945,7]
[384964552,1757634682113,-1422.61,0.00027945,7]
[384964553,1757634682123,-1234.81,0.00027945,7]
[384964554,1757634682132,-400.0,0.00027945,7]
[384964555,1757634682142,-716.12,0.00027945,7]
[384964556,1757634682151,-741.01,0.00027945,7]
[384964557,1757634682161,-400.0,0.00027945,7]
[384964558,1757634682172,-400.0,0.00027945,7]
[384964559,1757634682181,-1548.27,0.00027945,7]
[384964560,1757634682191,-400.0,0.00027945,7]
[384964561,1757634682200,-621.13,0.00027945,7]
[384964562,1757634682210,-400.0,0.00027945,7]
[384964563,1757634682220,-400.0,0.00027945,7]
[384964564,1757634682230,-814.53,0.00027945,7]
[384964565,1757634682239,-400.0,0.00027945,7]
[384964566,1757634682249,-400.0,0.00027945,7]
[384964567,1757634682258,-896.92,0.00027945,7]
[384964568,1757634682267,-400.0,0.00027945,7]
[384964569,1757634682276,-803.24,0.00027945,7]
[384964570,1757634682286,-533.42,0.00027945,7]
[384964571,1757634682297,-400.0,0.00027945,7]
[384964572,1757634682309,-1030.93,0.00027945,7]
[384964573,1757634682319,-579.91,0.00027945,7]
[384964574,1757634682328,-506.99,0.00027945,7]
[384964575,1757634682338,-151.0,0.00027945,7]
[384964576,1757634682347,-151.0,0.00027945,7]
[384964577,1757634682357,-400.0,0.00027945,7]
[384964578,1757634682366,-432.77,0.00027945,7]
[384964579,1757634682376,-856.59,0.00027945,7]
[384964580,1757634682385,-633.39,0.00027945,7]
[384964581,1757634682395,-630.52,0.00027945,7]
[384964582,1757634682404,-1799.32,0.00027945,7]
[384964583,1757634682414,-400.0,0.00027945,7]
[384964584,1757634682425,-300.0,0.00027945,7]
[384964585,1757634682435,-1043.44,0.00027945,7]
[384964586,1757634682444,-450.58,0.00027945,7]
[384964587,1757634682453,-400.0,0.00027945,7]
[384964588,1757634682463,-400.0,0.00027945,7]
[384964589,1757634682543,-1179.97,0.00027945,7]
[384964590,1757634682552,-400.0,0.00027945,7]
[384964591,1757634682562,-716.21,0.00027945,7]
[384964592,1757634682571,-743.2,0.00027945,7]
[384964593,1757634682580,-400.0,0.00027945,7]
[384964594,1757634682589,-1185.25,0.00027945,7]
[384964595,1757634682598,-400.0,0.00027945,7]
[384964596,1757634682607,-151.0,0.00027945,7]
[384964597,1757634682617,-445.7,0.00027945,7]
[384964598,1757634682626,-1138.04,0.00027945,7]
[384964599,1757634682635,-400.0,0.00027945,7]
[384964600,1757634682644,-400.0,0.00027945,7]
[384964601,1757634682652,-400.0,0.00027945,7]
[384964602,1757634682662,-400.0,0.00027945,7]
[384964603,1757634682671,-400.0,0.00027945,7]
[384964604,1757634682680,-400.0,0.00027945,7]
[384964605,1757634682690,-400.0,0.00027945,7]
[384964606,1757634682699,-604.82,0.00027945,7]
[384964607,1757634682707,-555.12,0.00027945,7]
[384964608,1757634682716,-882.31,0.00027945,7]
[384964609,1757634682725,-542.03,0.00027945,7]
[384964610,1757634682735,-793.36,0.00027945,7]
[384964611,1757634682744,-653.86,0.00027945,7]
[384964612,1757634682753,-400.0,0.00027945,7]
[384964613,1757634682762,-400.0,0.00027945,7]
[384964614,1757634682771,-400.0,0.00027945,7]
[384964615,1757634682780,-400.0,0.00027945,7]
[384964616,1757634682789,-400.0,0.00027945,7]
[384964617,1757634682799,-400.0,0.00027945,7]
[384964618,1757634682807,-1033.3,0.00027945,7]
[384964619,1757634682816,-483.88,0.00027945,7]
[384964620,1757634682826,-400.0,0.00027945,7]
[384964621,1757634682835,-400.0,0.00027945,7]
[384964622,1757634682844,-467.52,0.00027945,7]
[384964623,1757634682853,-400.0,0.00027945,7]
[384964624,1757634682862,-400.0,0.00027945,7]
[384964625,1757634682871,-728.9,0.00027945,7]
[384964626,1757634682879,-400.0,0.00027945,7]
[384964627,1757634682889,-400.0,0.00027945,7]
[384964628,1757634682898,-831.18,0.00027945,7]
[384964629,1757634682906,-505.84,0.00027945,7]
[384964630,1757634682915,-400.0,0.00027945,7]
[384964631,1757634682926,-784.57,0.00027945,7]
[384964632,1757634682935,-400.0,0.00027945,7]
[384964633,1757634682944,-582.51,0.00027945,7]
[384964634,1757634682953,-735.36,0.00027945,7]
[384964635,1757634682962,-400.0,0.00027945,7]
[384964636,1757634682971,-1376.56,0.00027945,7]
[384964637,1757634682980,-151.0,0.00027945,7]
[384964638,1757634682989,-400.0,0.00027945,7]
[384964639,1757634682998,-566.99,0.00027945,7]
[384964640,1757634683007,-685.42,0.00027945,7]
[384964641,1757634683016,-400.0,0.00027945,7]
[384964642,1757634683025,-400.0,0.00027945,7]
[384964643,1757634683034,-1653.06,0.00027945,7]
[384964644,1757634683043,-400.0,0.00027945,7]
[384964645,1757634683052,-300.0,0.00027945,7]
[384964646,1757634683062,-1207.75,0.00027945,7]
[384964647,1757634683071,-802.42,0.00027945,7]
[384964648,1757634683080,-401.8372646,0.00027945,7]
[384964649,1757634683089,-402.72795554,0.00027945,7]
[384964650,1757634683099,-438.77786565,0.00027945,7]
[384964651,1757634683108,-400.0,0.00027945,7]
[384964652,1757634683117,-400.0,0.00027945,7]
[384964653,1757634683126,-434.23,0.00027945,7]
[384964654,1757634683135,-400.0,0.00027945,7]
[384964655,1757634683144,-171.553611,0.00027945,7]
[384964656,1757634683153,-400.0,0.00027945,7]
[384964657,1757634683162,-400.0,0.00027945,7]
[384964658,1757634683173,-457.91,0.00027945,7]
[384964659,1757634683182,-725.42,0.00027945,7]
[384964660,1757634683192,-171.553611,0.00027945,7]
[384964661,1757634683201,-400.0,0.00027945,7]
[384964662,1757634683211,-400.0,0.00027945,7]
[384964663,1757634683220,-400.0,0.00027945,7]
[384964664,1757634683229,-1380.4,0.00027945,7]
[384964665,1757634683239,-171.553611,0.00027945,7]
[384964666,1757634683248,-1022.55,0.00027945,7]
[384964667,1757634683257,-400.0,0.00027945,7]
[384964668,1757634683266,-171.553611,0.00027945,7]
[384964669,1757634683275,-183.42146947,0.00027945,7]
[384964670,1757634683284,-400.0,0.00027945,7]
[384964671,1757634683293,-432.3383718,0.00027945,7]
[384964672,1757634683306,-836.55,0.00027945,7]
[384964673,1757634683315,-400.0,0.00027945,7]
[384964674,1757634683324,-400.0,0.00027945,7]
[384964675,1757634683334,-445.68,0.00027945,7]
[384964676,1757634683345,-400.0,0.00027945,7]
[384964677,1757634683354,-151.0,0.00027945,7]
[384964678,1757634683363,-400.0,0.00027945,7]
[384964679,1757634683375,-400.0,0.00027945,7]
[384964680,1757634683384,-400.0,0.00027945,7]
[384964681,1757634683393,-730.18,0.00027945,7]
[384964682,1757634683402,-400.0,0.00027945,7]
[384964683,1757634683412,-400.0,0.00027945,7]
[384964684,1757634683420,-457.8,0.00027945,7]
[384964685,1757634683430,-151.0,0.00027945,7]
[384964686,1757634683440,-400.0,0.00027945,7]
[384964687,1757634683449,-196.54865404,0.00027945,7]
[384964688,1757634683458,-804.98,0.00027945,7]
[384964689,1757634683467,-151.0,0.00027945,7]
[384964690,1757634683477,-668.83,0.00027945,7]
[384964691,1757634683487,-804.65,0.00027945,7]
[384964692,1757634683496,-400.0,0.00027945,7]
[384964693,1757634683505,-400.0,0.00027945,7]
[384964694,1757634683515,-853.23,0.00027945,7]
[384964695,1757634683524,-1830.18,0.00027945,7]
[384964696,1757634683533,-1362.04,0.00027945,7]
[384964697,1757634683542,-690.45,0.00027945,7]
[384964698,1757634683551,-253.155006,0.00027945,7]
[384964699,1757634683560,-430.68,0.00027945,7]
[384964700,1757634683569,-151.0,0.00027945,7]
[384964701,1757634683579,-400.0,0.00027945,7]
[384964702,1757634683588,-787.77,0.00027945,7]
[384964703,1757634683597,-151.0,0.00027945,7]
[384964704,1757634683607,-591.06,0.00027945,7]
[384964705,1757634683617,-151.0,0.00027945,7]
[384964706,1757634683626,-151.0,0.00027945,7]
[384964707,1757634683636,-400.0,0.00027945,7]
[384964708,1757634683645,-477.06,0.00027945,7]
[384964709,1757634683655,-1377.98,0.00027945,7]
[384964710,1757634683664,-151.0,0.00027945,7]
[384964711,1757634683673,-833.52,0.00027945,7]
[384964712,1757634683682,-1532.87,0.00027945,7]
[384964713,1757634683692,-151.0,0.00027945,7]
[384964714,1757634683701,-400.0,0.00027945,7]
[384964715,1757634683711,-151.0,0.00027945,7]
[384964716,1757634683721,-1802.09,0.00027945,7]
[384964717,1757634683732,-400.0,0.00027945,7]
[384964718,1757634683741,-400.0,0.00027945,7]
[384964719,1757634683751,-404.0,0.00027945,7]
[384964720,1757634683760,-544.71,0.00027945,7]
[384964721,1757634683770,-400.0,0.00027945,7]
[384964722,1757634683780,-551.433028,0.00027945,7]
[384964723,1757634683789,-926.87,0.00027945,7]
[384964724,1757634683799,-274.905525,0.00027945,7]
[384964725,1757634683809,-624.26,0.00027945,7]
[384964726,1757634683818,-551.433028,0.00027945,7]
[384964727,1757634683828,-249.15474653,0.00027945,7]
[384964728,1757634683837,-400.0,0.00027945,7]
[384964729,1757634683847,-571.09,0.00027945,7]
[384964730,1757634683857,-560.16,0.00027945,7]
[384964731,1757634683867,-274.905525,0.00027945,7]
[384964732,1757634683876,-551.433028,0.00027945,7]
[384964733,1757634683885,-791.48,0.00027945,7]
[384964734,1757634683895,-274.905525,0.00027945,7]
[384964735,1757634683905,-551.433028,0.00027945,7]
[384964736,1757634683915,-400.0,0.00027945,7]
[384964737,1757634683926,-1431.29,0.00027945,7]
[384964738,1757634683935,-431.58,0.00027945,7]
[384964739,1757634683945,-274.905525,0.00027945,7]
[384964740,1757634683955,-400.0,0.00027945,7]
[384964741,1757634683964,-400.0,0.00027945,7]
[384964742,1757634683974,-400.0,0.00027945,7]
[384964743,1757634683986,-447.64,0.00027945,7]
[384964744,1757634683996,-400.0,0.00027945,7]
[384964745,1757634684006,-200.729359,0.00027945,7]
[384964746,1757634684016,-400.0,0.00027945,7]
[384964747,1757634684026,-1200.45,0.00027945,7]
[384964748,1757634684036,-525.25,0.00027945,7]
[384964749,1757634684045,-400.0,0.00027945,7]
[384964750,1757634684054,-400.0,0.00027945,7]
[384964751,1757634684064,-400.14,0.00027945,7]
[384964752,1757634684074,-878.57,0.00027945,7]
[384964753,1757634684083,-400.0,0.00027945,7]
[384964754,1757634684093,-422.87,0.00027945,7]
[384964755,1757634684103,-400.0,0.00027945,7]
[384964756,1757634684113,-400.0,0.00027945,7]
[384964757,1757634684122,-778.91,0.00027945,7]
[384964758,1757634684133,-1492.25,0.00027945,7]
[384964759,1757634684143,-810.76,0.00027945,7]
[384964760,1757634684152,-400.0,0.00027945,7]
[384964761,1757634684162,-400.0,0.00027945,7]
[384964762,1757634684173,-2904.6,0.00027945,7]
[384964763,1757634684182,-400.0,0.00027945,7]
[384964764,1757634684191,-400.0,0.00027945,7]
[384964765,1757634684201,-414.52,0.00027945,7]
[384964766,1757634684211,-400.0,0.00027945,7]
[384964767,1757634684221,-622.23,0.00027945,7]
[384964768,1757634684230,-400.0,0.00027945,7]
[384964769,1757634684239,-1001.94,0.00027945,7]
[384964770,1757634684248,-400.0,0.00027945,7]
[384964771,1757634684258,-400.0,0.00027945,7]
[384964772,1757634684268,-1692.49,0.00027945,7]
[384964773,1757634684278,-400.0,0.00027945,7]
[384964774,1757634684287,-611.06,0.00027945,7]
[384964775,1757634684297,-1117.46,0.00027945,7]
[384964776,1757634684310,-400.0,0.00027945,7]
[384964777,1757634684319,-400.0,0.00027945,7]
[384964778,1757634684328,-400.0,0.00027945,7]
[384964779,1757634684337,-1096.4,0.00027945,7]
[384964780,1757634684348,-400.0,0.00027945,7]
[384964781,1757634684358,-400.0,0.00027945,7]
[384964782,1757634684368,-400.0,0.00027945,7]
[384964783,1757634684380,-1089.15,0.00027945,7]
[384964784,1757634684389,-738.47,0.00027945,7]
[384964785,1757634684408,-400.0,0.00027945,7]
[384964786,1757634684418,-549.33,0.00027945,7]
[384964787,1757634684430,-400.0,0.00027945,7]
[384964788,1757634684440,-400.0,0.00027945,7]
[384964789,1757634684449,-660.41,0.00027945,7]
[384964790,1757634684459,-776.68,0.00027945,7]
[384964791,1757634684468,-400.0,0.00027945,7]
[384964792,1757634684478,-400.0,0.00027945,7]
[384964793,1757634684488,-400.0,0.00027945,7]
[384964794,1757634684497,-1476.09,0.00027945,7]
[384964795,1757634684507,-400.0,0.00027945,7]
[384964796,1757634684516,-400.0,0.00027945,7]
[384964797,1757634684525,-400.0,0.00027945,7]
[384964798,1757634684535,-400.0,0.00027945,7]
[384964799,1757634684545,-151.0,0.00027945,7]
[384964800,1757634684554,-151.0,0.00027945,7]
[384964801,1757634684564,-151.0,0.00027945,7]
[384964802,1757634684575,-151.0,0.00027945,7]
[384964803,1757634684584,-400.0,0.00027945,7]
[384964804,1757634684594,-400.0,0.00027945,7]
[384964805,1757634684603,-400.0,0.00027945,7]
[384964806,1757634684612,-151.0,0.00027945,7]
[384964807,1757634684622,-837.03,0.00027945,7]
[384964808,1757634684632,-802.43,0.00027945,7]
[384964809,1757634684641,-514.09,0.00027945,7]
[384964810,1757634684651,-151.0,0.00027945,7]
[384964811,1757634684660,-258.85357611,0.00027945,7]
[384964812,1757634684669,-622.33,0.00027945,7]
[384964813,1757634684680,-151.0,0.00027945,7]
[384964814,1757634684689,-400.0,0.00027945,7]
[384964815,1757634684698,-400.0,0.00027945,7]
[384964816,1757634684708,-151.0,0.00027945,7]
[384964817,1757634684717,-694.54,0.00027945,7]
[384964818,1757634684727,-151.0,0.00027945,7]
[384964819,1757634684736,-842.86,0.00027945,7]
[384964820,1757634684745,-400.0,0.00027945,7]
[384964821,1757634684757,-400.0,0.00027945,7]
[384964822,1757634684767,-400.0,0.00027945,7]
[384964823,1757634684776,-1087.73,0.00027945,7]
[384964824,1757634684786,-1688.79,0.00027945,7]
[384964825,1757634684795,-151.0,0.00027945,7]
[384964826,1757634684805,-151.0,0.00027945,7]
[384964827,1757634684815,-151.0,0.00027945,7]
[384964828,1757634684825,-762.77,0.00027945,7]
[384964829,1757634684835,-205.165569,0.00027945,7]
[384964830,1757634684845,-400.0,0.00027945,7]
[384964831,1757634684856,-756.17,0.00027945,7]
[384964832,1757634684866,-400.0,0.00027945,7]
[384964833,1757634684876,-502.44,0.00027945,7]
[384964834,1757634684885,-400.0,0.00027945,7]
[384964835,1757634684895,-1453.02,0.00027945,7]
[384964836,1757634684904,-2802.57,0.00027945,7]
[384964837,1757634684913,-400.0,0.00027945,7]
[384964838,1757634684924,-359.47324147,0.00027945,7]
[384964839,1757634684933,-1525.88,0.00027945,7]
[384964840,1757634684942,-400.0,0.00027945,7]
[384964841,1757634684951,-1094.64,0.00027945,7]
[384964842,1757634684961,-926.24,0.00027945,7]
[384964843,1757634684970,-400.0,0.00027945,7]
[384964844,1757634684980,-733.8,0.00027945,7]
[384964845,1757634684990,-564.53,0.00027945,7]
[384964846,1757634684999,-1170.7,0.00027945,7]
[384964847,1757634685009,-400.0,0.00027945,7]
[384964848,1757634685018,-400.0,0.00027945,7]
[384964849,1757634685027,-1015.11,0.00027945,7]
[384964850,1757634685037,-151.0,0.00027945,7]
[384964851,1757634685046,-400.0,0.00027945,7]
[384964852,1757634685057,-706.19,0.00027945,7]
[384964853,1757634685066,-400.0,0.00027945,7]
[384964854,1757634685076,-479.94,0.00027945,7]
[384964855,1757634685095,-2367.91,0.00027945,7]
[384964856,1757634685105,-763.51,0.00027945,7]
[384964857,1757634685114,-400.0,0.00027945,7]
[384964858,1757634685124,-991.41,0.00027945,7]
[384964859,1757634685133,-400.0,0.00027945,7]
[384964860,1757634685143,-1257.44,0.00027945,7]
[384964861,1757634685152,-400.0,0.00027945,7]
[384964862,1757634685162,-400.0,0.00027945,7]
[384964863,1757634685173,-400.0,0.00027945,7]
[384964864,1757634685182,-401.74,0.00027945,7]
[384964865,1757634685191,-400.0,0.00027945,7]
[384964866,1757634685201,-561.01,0.00027945,7]
[384964867,1757634685210,-688.99,0.00027945,7]
[384964868,1757634685220,-864.09,0.00027945,7]
[384964869,1757634685229,-400.0,0.00027945,7]
[384964870,1757634685238,-400.0,0.00027945,7]
[384964871,1757634685248,-400.0,0.00027945,7]
[384964872,1757634685257,-400.0,0.00027945,7]
[384964873,1757634685266,-400.0,0.00027945,7]
[384964874,1757634685276,-720.52,0.00027945,7]
[384964875,1757634685285,-665.33,0.00027945,7]
[384964876,1757634685294,-788.92,0.00027945,7]
[384964877,1757634685309,-958.86,0.00027945,7]
[384964878,1757634685318,-1494.79,0.00027945,7]
[384964879,1757634685328,-1287.95,0.00027945,7]
[384964880,1757634685337,-400.0,0.00027945,7]
[384964881,1757634685348,-1034.61,0.00027945,7]
[384964882,1757634685357,-400.0,0.00027945,7]
[384964883,1757634685367,-400.0,0.00027945,7]
[384964884,1757634685377,-1151.82,0.00027945,7]
[384964885,1757634685386,-401.77255962,0.00027945,7]
[384964886,1757634685396,-400.0,0.00027945,7]
[384964887,1757634685406,-400.0,0.00027945,7]
[384964888,1757634685415,-400.0,0.00027945,7]
[384964889,1757634685426,-866.42,0.00027945,7]
[384964890,1757634685436,-400.0,0.00027945,7]
[384964891,1757634685445,-400.0,0.00027945,7]
[384964892,1757634685454,-400.0,0.00027945,7]
[384964893,1757634685464,-663.48,0.00027945,7]
[384964894,1757634685473,-407.44,0.00027945,7]
[384964895,1757634685483,-400.0,0.00027945,7]
[384964896,1757634685492,-1020.13,0.00027945,7]
[384964897,1757634685502,-412.44,0.00027945,7]
[384964898,1757634685511,-400.0,0.00027945,7]
[384964899,1757634685520,-872.6,0.00027945,7]
[384964900,1757634685529,-386.66,0.00027945,7]
[384964901,1757634685539,-809.73,0.00027945,7]
[384964902,1757634685547,-500.0,0.00027945,2]
[384964903,1757634685556,-400.0,0.00027945,7]
[384964904,1757634685565,-1048.28,0.00027945,7]
[384964905,1757634685576,-1119.41,0.00027945,7]
[384964906,1757634685585,-400.0,0.00027945,7]
[384964907,1757634685594,-1879.33,0.00027945,7]
[384964908,1757634685603,-400.0,0.00027945,7]
[384964909,1757634685613,-400.0,0.00027945,7]
[384964910,1757634685622,-1177.57,0.00027945,7]
[384964911,1757634685632,-518.34,0.00027945,7]
[384964912,1757634685643,-400.0,0.00027945,7]
[384964913,1757634685652,-400.0,0.00027945,7]
[384964914,1757634685662,-400.0,0.00027945,7]
[384964915,1757634685672,-400.0,0.00027945,7]
[384964916,1757634685681,-400.0,0.00027945,7]
[384964917,1757634685690,-400.0,0.00027945,7]
[384964918,1757634685699,-400.0,0.00027945,7]
[384964919,1757634685709,-853.93,0.00027945,7]
[384964920,1757634685718,-771.97,0.00027945,7]
[384964921,1757634685727,-400.0,0.00027945,7]
[384964922,1757634685736,-968.36,0.00027945,7]
[384964923,1757634685745,-464.64,0.00027945,7]
[384964924,1757634685756,-945.58,0.00027945,7]
[384964925,1757634685767,-1753.63,0.00027945,7]
[384964926,1757634685776,-459.72,0.00027945,7]
[384964927,1757634685785,-408.07,0.00027945,7]
[384964928,1757634685794,-400.0,0.00027945,7]
[384964929,1757634685804,-753.83,0.00027945,7]
[384964930,1757634685813,-400.0,0.00027945,7]
[384964931,1757634685822,-400.0,0.00027945,7]
[384964932,1757634685831,-1270.5,0.00027945,7]
[384964933,1757634685841,-400.0,0.00027945,7]
[384964934,1757634685851,-568.07,0.00027945,7]
[384964935,1757634685861,-151.0,0.00027945,7]
[384964936,1757634685871,-151.0,0.00027945,7]
[384964937,1757634685880,-1402.04,0.00027945,7]
[384964938,1757634685890,-850.99,0.00027945,7]
[384964939,1757634685900,-151.0,0.00027945,7]
[384964940,1757634685909,-151.0,0.00027945,7]
[384964941,1757634685919,-997.25,0.00027945,7]
[384964942,1757634685929,-197.087608,0.00027945,7]
[384964943,1757634685938,-400.0,0.00027945,7]
[384964944,1757634685947,-3228.61,0.00027945,7]
[384964945,1757634685956,-948.18,0.00027945,7]
[384964946,1757634685965,-400.0,0.00027945,7]
[384964947,1757634685975,-400.0,0.00027945,7]
[384964948,1757634685985,-1899.51,0.00027945,7]
[384964949,1757634685994,-976.45,0.00027945,7]
[384964950,1757634686004,-850.84,0.00027945,7]
[384964951,1757634686014,-400.0,0.00027945,7]
[384964952,1757634686023,-1110.37,0.00027945,7]
[384964953,1757634686033,-400.0,0.00027945,7]
[384964954,1757634686043,-400.0,0.00027945,7]
[384964955,1757634686052,-882.97,0.00027945,7]
[384964956,1757634686061,-400.0,0.00027945,7]
[384964957,1757634686071,-400.0,0.00027945,7]
[384964958,1757634686080,-2643.62,0.00027945,7]
[384964959,1757634686090,-540.6,0.00027945,7]
[384964960,1757634686100,-400.0,0.00027945,7]
[384964961,1757634686109,-1511.84,0.00027945,7]
[384964962,1757634686120,-400.0,0.00027945,7]
[384964963,1757634686130,-473.41,0.00027945,7]
[384964964,1757634686139,-400.0,0.00027945,7]
[384964965,1757634686150,-379.96,0.00027945,7]
[384964966,1757634686159,-861.72,0.00027945,7]
[384964967,1757634686169,-400.0,0.00027945,7]
[384964968,1757634686179,-6542.94,0.00027945,7]
[384964969,1757634686190,-400.0,0.00027945,7]
[384964970,1757634686199,-510.47,0.00027945,7]
[384964971,1757634686209,-400.0,0.00027945,7]
[384964972,1757634686219,-400.0,0.00027945,7]
[384964973,1757634686229,-400.0,0.00027945,7]
[384964974,1757634686239,-890.0,0.00027945,7]
[384964975,1757634686248,-400.0,0.00027945,7]
[384964977,1757634686258,-400.0,0.00027945,7]
[384964978,1757634686267,-1274.23,0.00027945,7]
[384964979,1757634686277,-1682.08,0.00027945,7]
[384964980,1757634686286,-518.32781682,0.00027945,7]
[384964981,1757634686295,-400.0,0.00027945,7]
[384964982,1757634686308,-1166.68,0.00027945,7]
[384964983,1757634686317,-400.0,0.00027945,7]
[384964984,1757634686326,-422.33041945,0.00027945,7]
[384964985,1757634686335,-400.00002949,0.00027945,7]
[384964986,1757634686345,-414.17,0.00027945,7]
[384964987,1757634686355,-400.0,0.00027945,7]
[384964988,1757634686363,-400.0,0.00027945,7]
[384964989,1757634686372,-914.74,0.00027945,7]
[384964990,1757634686384,-405.62734832,0.00027945,7]
[384964991,1757634686393,-400.0,0.00027945,7]
[384964992,1757634686403,-964.06,0.00027945,7]
[384964993,1757634686412,-404.99804096,0.00027945,7]
[384964994,1757634686422,-626.72,0.00027945,7]
[384964995,1757634686431,-400.0,0.00027945,7]
[384964996,1757634686441,-400.0,0.00027945,7]
[384964997,1757634686450,-400.0,0.00027945,7]
[384964998,1757634686459,-525.96,0.00027945,7]
[384964999,1757634686468,-730.43,0.00027945,7]
[384965000,1757634686478,-1801.99,0.00027945,7]
[384965001,1757634686488,-400.0,0.00027945,7]
[384965002,1757634686497,-400.0,0.00027945,7]
[384965003,1757634686507,-400.0,0.00027945,7]
[384965004,1757634686516,-400.0,0.00027945,7]
[384965005,1757634686526,-3074.0,0.00027945,7]
[384965006,1757634686535,-1242.11,0.00027945,7]
[384965007,1757634686545,-1349.75,0.00027945,7]
[384965008,1757634686554,-400.0,0.00027945,7]
[384965009,1757634686563,-400.0,0.00027945,7]
[384965010,1757634686573,-400.0,0.00027945,7]
[384965011,1757634686582,-400.0,0.00027945,7]
[384965012,1757634686592,-400.0,0.00027945,7]
[384965013,1757634686602,-185.79640648,0.00027945,7]
[384965014,1757634686611,-2184.5,0.00027945,7]
[384965015,1757634686621,-400.0,0.00027945,7]
[384965016,1757634686780,-400.0,0.00027945,7]
[384965017,1757634686790,-514.87,0.00027945,7]
[384965018,1757634686800,-939.89,0.00027945,7]
[384965019,1757634686809,-3479.41,0.00027945,7]
[384965020,1757634686819,-1406.91,0.00027945,7]
[384965021,1757634686828,-791.34,0.00027945,7]
[384965022,1757634686837,-400.0,0.00027945,7]
[384965023,1757634686846,-1449.7,0.00027945,7]
[384965024,1757634686855,-151.0,0.00027945,7]
[384965025,1757634686864,-400.0,0.00027945,7]
[384965026,1757634686874,-151.0,0.00027945,7]
[384965027,1757634686883,-904.46,0.00027945,7]
[384965028,1757634686893,-400.0,0.00027945,7]
[384965029,1757634686902,-400.0,0.00027945,7]
[384965030,1757634686911,-449.17,0.00027945,7]
[384965031,1757634686921,-400.0,0.00027945,7]
[384965032,1757634686931,-1115.64,0.00027945,7]
[384965033,1757634686940,-1447.85,0.00027945,7]
[384965034,1757634686950,-400.0,0.00027945,7]
[384965035,1757634686960,-1114.59,0.00027945,7]
[384965036,1757634686969,-400.0,0.00027945,7]
[384965037,1757634686979,-535.28,0.00027945,7]
[384965038,1757634686988,-400.0,0.00027945,7]
[384965039,1757634686998,-2271.39,0.00027945,7]